{"text_format":"3","workbook":"xlsx","n_sheets":1,"sheets":["Kylpyhuoneen remonttimenot"],"not_rendered":{"defined_names":3},"read":"whole","date_system":"1900"}

{"sheet":"Kylpyhuoneen remonttimenot","index":0,"n_rows":23,"n_cols":10,"rows_kept":23,"merged":[[1,1,2,3],[2,4,2,6],[2,7,2,9],[21,1,21,3],[21,4,21,6],[21,7,21,9],[22,1,22,3],[22,4,22,6],[22,7,22,9]]}
[null,"Kylpyhuoneremontin kustannusten laskentataulukko"]
[null,"HUOMAUTUS: Taulukossa näkyy erotussarakkeita, jos tosiasialliset summat ylittävät arvioidut. Punaiset numerot näyttävät ylitykset (negatiiviset) ja musta näyttää alitukset (positiiviset). "]
[{"$nulls":4},"Eritellyt kustannukset (€)",null,null,"Kustannukset yhteensä (€)"]
[null,"Alue","Kohteet","Määrä","Arvioidut","Todelliset","Erotus","Arvioidut ","Todelliset ","Erotus "]
[null,"Kylpy/suihku","Kylpyamme, valurautaa, 5', vakio",1,{"v":250,"d":"250.00 €"},{"$f":"RANDBETWEEN(E5+2,E5+20)","v":{"v":259,"d":"259.00 €"}},{"$f":"IFERROR(Kustannukset[[#This Row],[Arvioidut]]-Kustannukset[[#This Row],[Todelliset]], \"\")","v":{"v":-9,"d":"-9.00 €"}},{"$f":"IFERROR(Kustannukset[[#This Row],[Määrä]]*Kustannukset[[#This Row],[Arvioidut]], \"\")","v":{"v":250,"d":"250.00 €"}},{"$f":"IFERROR(Kustannukset[[#This Row],[Määrä]]*Kustannukset[[#This Row],[Todelliset]], \"\")","v":{"v":259,"d":"259.00 €"}},{"$f":"IFERROR(Kustannukset[[#This Row],[Arvioidut ]]-Kustannukset[[#This Row],[Todelliset ]], \"\")","v":{"v":-9,"d":"-9.00 €"}}]
[null,"Kylpy/suihku","Suihkuovet, saranoidut, vakio",1,{"v":200,"d":"200.00 €"},{"v":204,"d":"204.00 €"},{"$f":"IFERROR(Kustannukset[[#This Row],[Arvioidut]]-Kustannukset[[#This Row],[Todelliset]], \"\")","v":{"v":-4,"d":"-4.00 €"}},{"$f":"IFERROR(Kustannukset[[#This Row],[Määrä]]*Kustannukset[[#This Row],[Arvioidut]], \"\")","v":{"v":200,"d":"200.00 €"}},{"$f":"IFERROR(Kustannukset[[#This Row],[Määrä]]*Kustannukset[[#This Row],[Todelliset]], \"\")","v":{"v":204,"d":"204.00 €"}},{"$f":"IFERROR(Kustannukset[[#This Row],[Arvioidut ]]-Kustannukset[[#This Row],[Todelliset ]], \"\")","v":{"v":-4,"d":"-4.00 €"}}]
[null,"Kylpy/suihku","Suihkun suutin, vakio",1,{"v":50,"d":"50.00 €"},{"v":67,"d":"67.00 €"},{"$f":"IFERROR(Kustannukset[[#This Row],[Arvioidut]]-Kustannukset[[#This Row],[Todelliset]], \"\")","v":{"v":-17,"d":"-17.00 €"}},{"$f":"IFERROR(Kustannukset[[#This Row],[Määrä]]*Kustannukset[[#This Row],[Arvioidut]], \"\")","v":{"v":50,"d":"50.00 €"}},{"$f":"IFERROR(Kustannukset[[#This Row],[Määrä]]*Kustannukset[[#This Row],[Todelliset]], \"\")","v":{"v":67,"d":"67.00 €"}},{"$f":"IFERROR(Kustannukset[[#This Row],[Arvioidut ]]-Kustannukset[[#This Row],[Todelliset ]], \"\")","v":{"v":-17,"d":"-17.00 €"}}]
[null,"Kylpy/suihku","Kylpyammeen ympäröivä seinä, vakio",1,{"v":200,"d":"200.00 €"},{"v":215,"d":"215.00 €"},{"$f":"IFERROR(Kustannukset[[#This Row],[Arvioidut]]-Kustannukset[[#This Row],[Todelliset]], \"\")","v":{"v":-15,"d":"-15.00 €"}},{"$f":"IFERROR(Kustannukset[[#This Row],[Määrä]]*Kustannukset[[#This Row],[Arvioidut]], \"\")","v":{"v":200,"d":"200.00 €"}},{"$f":"IFERROR(Kustannukset[[#This Row],[Määrä]]*Kustannukset[[#This Row],[Todelliset]], \"\")","v":{"v":215,"d":"215.00 €"}},{"$f":"IFERROR(Kustannukset[[#This Row],[Arvioidut ]]-Kustannukset[[#This Row],[Todelliset ]], \"\")","v":{"v":-15,"d":"-15.00 €"}}]
[null,"Kaapit","Lääkekaappi 24'', deluxe",1,{"v":200,"d":"200.00 €"},{"v":204,"d":"204.00 €"},{"$f":"IFERROR(Kustannukset[[#This Row],[Arvioidut]]-Kustannukset[[#This Row],[Todelliset]], \"\")","v":{"v":-4,"d":"-4.00 €"}},{"$f":"IFERROR(Kustannukset[[#This Row],[Määrä]]*Kustannukset[[#This Row],[Arvioidut]], \"\")","v":{"v":200,"d":"200.00 €"}},{"$f":"IFERROR(Kustannukset[[#This Row],[Määrä]]*Kustannukset[[#This Row],[Todelliset]], \"\")","v":{"v":204,"d":"204.00 €"}},{"$f":"IFERROR(Kustannukset[[#This Row],[Arvioidut ]]-Kustannukset[[#This Row],[Todelliset ]], \"\")","v":{"v":-4,"d":"-4.00 €"}}]
[null,"Kaapit","Modulaarinen peilikaappi 30'', vakio",2,{"v":100,"d":"100.00 €"},{"v":120,"d":"120.00 €"},{"$f":"IFERROR(Kustannukset[[#This Row],[Arvioidut]]-Kustannukset[[#This Row],[Todelliset]], \"\")","v":{"v":-20,"d":"-20.00 €"}},{"$f":"IFERROR(Kustannukset[[#This Row],[Määrä]]*Kustannukset[[#This Row],[Arvioidut]], \"\")","v":{"v":200,"d":"200.00 €"}},{"$f":"IFERROR(Kustannukset[[#This Row],[Määrä]]*Kustannukset[[#This Row],[Todelliset]], \"\")","v":{"v":240,"d":"240.00 €"}},{"$f":"IFERROR(Kustannukset[[#This Row],[Arvioidut ]]-Kustannukset[[#This Row],[Todelliset ]], \"\")","v":{"v":-40,"d":"-40.00 €"}}]
[null,"Tiskin päällä olevat","Kaakeli, deluxe (määrä pituusmittoina)",5,{"v":22.5,"d":"22.50 €"},{"v":32,"d":"32.00 €"},{"$f":"IFERROR(Kustannukset[[#This Row],[Arvioidut]]-Kustannukset[[#This Row],[Todelliset]], \"\")","v":{"v":-9.5,"d":"-9.50 €"}},{"$f":"IFERROR(Kustannukset[[#This Row],[Määrä]]*Kustannukset[[#This Row],[Arvioidut]], \"\")","v":{"v":112.5,"d":"112.50 €"}},{"$f":"IFERROR(Kustannukset[[#This Row],[Määrä]]*Kustannukset[[#This Row],[Todelliset]], \"\")","v":{"v":160,"d":"160.00 €"}},{"$f":"IFERROR(Kustannukset[[#This Row],[Arvioidut ]]-Kustannukset[[#This Row],[Todelliset ]], \"\")","v":{"v":-47.5,"d":"-47.50 €"}}]
[null,"Hanat","Hana, kylpyamme, vakio",1,{"v":90,"d":"90.00 €"},{"v":100,"d":"100.00 €"},{"$f":"IFERROR(Kustannukset[[#This Row],[Arvioidut]]-Kustannukset[[#This Row],[Todelliset]], \"\")","v":{"v":-10,"d":"-10.00 €"}},{"$f":"IFERROR(Kustannukset[[#This Row],[Määrä]]*Kustannukset[[#This Row],[Arvioidut]], \"\")","v":{"v":90,"d":"90.00 €"}},{"$f":"IFERROR(Kustannukset[[#This Row],[Määrä]]*Kustannukset[[#This Row],[Todelliset]], \"\")","v":{"v":100,"d":"100.00 €"}},{"$f":"IFERROR(Kustannukset[[#This Row],[Arvioidut ]]-Kustannukset[[#This Row],[Todelliset ]], \"\")","v":{"v":-10,"d":"-10.00 €"}}]
[null,"Hanat","Hana, suihkulle, yksi kahva, vakio",1,{"v":115,"d":"115.00 €"},{"v":133,"d":"133.00 €"},{"$f":"IFERROR(Kustannukset[[#This Row],[Arvioidut]]-Kustannukset[[#This Row],[Todelliset]], \"\")","v":{"v":-18,"d":"-18.00 €"}},{"$f":"IFERROR(Kustannukset[[#This Row],[Määrä]]*Kustannukset[[#This Row],[Arvioidut]], \"\")","v":{"v":115,"d":"115.00 €"}},{"$f":"IFERROR(Kustannukset[[#This Row],[Määrä]]*Kustannukset[[#This Row],[Todelliset]], \"\")","v":{"v":133,"d":"133.00 €"}},{"$f":"IFERROR(Kustannukset[[#This Row],[Arvioidut ]]-Kustannukset[[#This Row],[Todelliset ]], \"\")","v":{"v":-18,"d":"-18.00 €"}}]
[null,"Hanat","Allashana, vakio",1,{"v":95,"d":"95.00 €"},{"v":101,"d":"101.00 €"},{"$f":"IFERROR(Kustannukset[[#This Row],[Arvioidut]]-Kustannukset[[#This Row],[Todelliset]], \"\")","v":{"v":-6,"d":"-6.00 €"}},{"$f":"IFERROR(Kustannukset[[#This Row],[Määrä]]*Kustannukset[[#This Row],[Arvioidut]], \"\")","v":{"v":95,"d":"95.00 €"}},{"$f":"IFERROR(Kustannukset[[#This Row],[Määrä]]*Kustannukset[[#This Row],[Todelliset]], \"\")","v":{"v":101,"d":"101.00 €"}},{"$f":"IFERROR(Kustannukset[[#This Row],[Arvioidut ]]-Kustannukset[[#This Row],[Todelliset ]], \"\")","v":{"v":-6,"d":"-6.00 €"}}]
[null,"Lattiapäällysteet","Kaakeli, vakio (määrä pinta-alayksikköinä)",35,{"v":12,"d":"12.00 €"},{"v":29,"d":"29.00 €"},{"$f":"IFERROR(Kustannukset[[#This Row],[Arvioidut]]-Kustannukset[[#This Row],[Todelliset]], \"\")","v":{"v":-17,"d":"-17.00 €"}},{"$f":"IFERROR(Kustannukset[[#This Row],[Määrä]]*Kustannukset[[#This Row],[Arvioidut]], \"\")","v":{"v":420,"d":"420.00 €"}},{"$f":"IFERROR(Kustannukset[[#This Row],[Määrä]]*Kustannukset[[#This Row],[Todelliset]], \"\")","v":{"v":1015,"d":"1,015.00 €"}},{"$f":"IFERROR(Kustannukset[[#This Row],[Arvioidut ]]-Kustannukset[[#This Row],[Todelliset ]], \"\")","v":{"v":-595,"d":"-595.00 €"}}]
[null,"Laitteisto","Pyyheripustin, vakio",2,{"v":15,"d":"15.00 €"},{"v":27,"d":"27.00 €"},{"$f":"IFERROR(Kustannukset[[#This Row],[Arvioidut]]-Kustannukset[[#This Row],[Todelliset]], \"\")","v":{"v":-12,"d":"-12.00 €"}},{"$f":"IFERROR(Kustannukset[[#This Row],[Määrä]]*Kustannukset[[#This Row],[Arvioidut]], \"\")","v":{"v":30,"d":"30.00 €"}},{"$f":"IFERROR(Kustannukset[[#This Row],[Määrä]]*Kustannukset[[#This Row],[Todelliset]], \"\")","v":{"v":54,"d":"54.00 €"}},{"$f":"IFERROR(Kustannukset[[#This Row],[Arvioidut ]]-Kustannukset[[#This Row],[Todelliset ]], \"\")","v":{"v":-24,"d":"-24.00 €"}}]
[null,"Laitteisto","Vessapaperin pidike",1,{"v":10,"d":"10.00 €"},{"v":20,"d":"20.00 €"},{"$f":"IFERROR(Kustannukset[[#This Row],[Arvioidut]]-Kustannukset[[#This Row],[Todelliset]], \"\")","v":{"v":-10,"d":"-10.00 €"}},{"$f":"IFERROR(Kustannukset[[#This Row],[Määrä]]*Kustannukset[[#This Row],[Arvioidut]], \"\")","v":{"v":10,"d":"10.00 €"}},{"$f":"IFERROR(Kustannukset[[#This Row],[Määrä]]*Kustannukset[[#This Row],[Todelliset]], \"\")","v":{"v":20,"d":"20.00 €"}},{"$f":"IFERROR(Kustannukset[[#This Row],[Arvioidut ]]-Kustannukset[[#This Row],[Todelliset ]], \"\")","v":{"v":-10,"d":"-10.00 €"}}]
[null,"Valaistus","Upotetut kattovalot, vakio",4,{"v":25,"d":"25.00 €"},{"v":27,"d":"27.00 €"},{"$f":"IFERROR(Kustannukset[[#This Row],[Arvioidut]]-Kustannukset[[#This Row],[Todelliset]], \"\")","v":{"v":-2,"d":"-2.00 €"}},{"$f":"IFERROR(Kustannukset[[#This Row],[Määrä]]*Kustannukset[[#This Row],[Arvioidut]], \"\")","v":{"v":100,"d":"100.00 €"}},{"$f":"IFERROR(Kustannukset[[#This Row],[Määrä]]*Kustannukset[[#This Row],[Todelliset]], \"\")","v":{"v":108,"d":"108.00 €"}},{"$f":"IFERROR(Kustannukset[[#This Row],[Arvioidut ]]-Kustannukset[[#This Row],[Todelliset ]], \"\")","v":{"v":-8,"d":"-8.00 €"}}]
[null,"Altaat","Käymälä, vakio",2,{"v":60,"d":"60.00 €"},{"v":73,"d":"73.00 €"},{"$f":"IFERROR(Kustannukset[[#This Row],[Arvioidut]]-Kustannukset[[#This Row],[Todelliset]], \"\")","v":{"v":-13,"d":"-13.00 €"}},{"$f":"IFERROR(Kustannukset[[#This Row],[Määrä]]*Kustannukset[[#This Row],[Arvioidut]], \"\")","v":{"v":120,"d":"120.00 €"}},{"$f":"IFERROR(Kustannukset[[#This Row],[Määrä]]*Kustannukset[[#This Row],[Todelliset]], \"\")","v":{"v":146,"d":"146.00 €"}},{"$f":"IFERROR(Kustannukset[[#This Row],[Arvioidut ]]-Kustannukset[[#This Row],[Todelliset ]], \"\")","v":{"v":-26,"d":"-26.00 €"}}]
[null,"Muut",null,1,{"v":20,"d":"20.00 €"},{"v":23,"d":"23.00 €"},{"$f":"IFERROR(Kustannukset[[#This Row],[Arvioidut]]-Kustannukset[[#This Row],[Todelliset]], \"\")","v":{"v":-3,"d":"-3.00 €"}},{"$f":"IFERROR(Kustannukset[[#This Row],[Määrä]]*Kustannukset[[#This Row],[Arvioidut]], \"\")","v":{"v":20,"d":"20.00 €"}},{"$f":"IFERROR(Kustannukset[[#This Row],[Määrä]]*Kustannukset[[#This Row],[Todelliset]], \"\")","v":{"v":23,"d":"23.00 €"}},{"$f":"IFERROR(Kustannukset[[#This Row],[Arvioidut ]]-Kustannukset[[#This Row],[Todelliset ]], \"\")","v":{"v":-3,"d":"-3.00 €"}}]
[null,"Välisumma",null,null,{"$f":"SUBTOTAL(109,Kustannukset[Arvioidut])","v":{"v":1464.5,"d":"1,464.50 €"}},{"$f":"SUBTOTAL(109,Kustannukset[Todelliset])","v":{"v":1634,"d":"1,634.00 €"}},{"$f":"SUBTOTAL(109,Kustannukset[Erotus])","v":{"v":-169.5,"d":"-169.50 €"}},{"$f":"SUBTOTAL(109,Kustannukset[[Arvioidut ]])","v":{"v":2212.5,"d":"2,212.50 €"}},{"$f":"SUBTOTAL(109,Kustannukset[[Todelliset ]])","v":{"v":3049,"d":"3,049.00 €"}},{"$f":"SUBTOTAL(109,Kustannukset[[Erotus ]])","v":{"v":-836.5,"d":"-836.50 €"}}]
[null,"Odottamattomat kustannukset (lisää arviolta 30 %)",null,null,{"$f":"IFERROR(Kustannukset[[#Totals],[Arvioidut]]*0.3, \"\")","v":{"v":439.34999999999997,"d":"439.35 €"}},null,null,{"$f":"IFERROR(Kustannukset[[#Totals],[Arvioidut ]]*0.3, \"\")","v":{"v":663.75,"d":"663.75 €"}}]
[null,"Kokonaiskustannukset",null,null,{"$f":"IFERROR(SUM(E21:E21), \"\")","v":{"v":1464.5,"d":"1,464.50 €"}},null,null,{"$f":"IFERROR(SUM(Kustannukset[[#Totals],[Arvioidut ]],Kattavuus), \"\")","v":{"v":2876.25,"d":"2,876.25 €"}}]